[Event "*** Titled Tuesday Blitz"]
[Site "Chess.com"]
[Date "2018.10.02"]
[Round "3"]
[White "Nathan_Filgueiras"]
[Black "ajkom197"]
[Result "0-1"]
[WhiteElo "2206"]
[BlackElo "2396"]
[TimeControl "180+2"]
[EndTime "13:36:21 PDT"]
[Termination "ajkom197 won by resignation"]

1. e4 {[%clk 0:03:01.9]} 1... c6 {[%clk 0:03:00.6]} 2. d4 {[%clk 0:03:02.3]}
2... d5 {[%clk 0:03:01.8]} 3. e5 {[%clk 0:03:03.7]} 3... Bf5 {[%clk 0:03:02.4]}
4. h4 {[%clk 0:03:03.8]} 4... h5 {[%clk 0:03:03]} 5. Bd3 {[%clk 0:03:04.4]} 5...
Bxd3 {[%clk 0:03:02.2]} 6. Qxd3 {[%clk 0:03:06.3]} 6... e6 {[%clk 0:03:03.1]} 7.
Nf3 {[%clk 0:03:04.9]} 7... Qa5+ {[%clk 0:03:00.8]} 8. Nbd2 {[%clk 0:03:03.6]}
8... Qa6 {[%clk 0:03:01.7]} 9. c4 {[%clk 0:03:04.7]} 9... Ne7 {[%clk 0:02:59.6]}
10. O-O {[%clk 0:02:57]} 10... Nd7 {[%clk 0:02:55.2]} 11. Qc3 {[%clk 0:02:48.8]}
11... Nf5 {[%clk 0:02:51.8]} 12. c5 {[%clk 0:02:32.4]} 12... Be7 {[%clk
0:02:49.2]} 13. g3 {[%clk 0:02:33.1]} 13... O-O {[%clk 0:02:39.2]} 14. Re1
{[%clk 0:02:31.2]} 14... b6 {[%clk 0:02:14.4]} 15. b4 {[%clk 0:02:31.2]} 15...
bxc5 {[%clk 0:02:12.7]} 16. bxc5 {[%clk 0:02:32.7]} 16... Rab8 {[%clk
0:02:10.6]} 17. Nf1 {[%clk 0:02:33.4]} 17... Bd8 {[%clk 0:02:05.6]} 18. Bd2
{[%clk 0:02:24.4]} 18... Qa4 {[%clk 0:01:55.9]} 19. Ne3 {[%clk 0:02:10.3]} 19...
Nxe3 {[%clk 0:01:55.2]} 20. fxe3 {[%clk 0:02:11.1]} 20... Rb5 {[%clk 0:01:48.7]}
21. Qd3 {[%clk 0:01:46.1]} 21... Rb2 {[%clk 0:01:36.8]} 22. e4 {[%clk
0:01:29.4]} 22... Re8 {[%clk 0:01:04.5]} 23. exd5 {[%clk 0:01:28.1]} 23... exd5
{[%clk 0:01:01.9]} 24. e6 {[%clk 0:01:09.7]} 24... Rxe6 {[%clk 0:00:57.9]} 25.
Rxe6 {[%clk 0:01:08.9]} 25... fxe6 {[%clk 0:00:59.8]} 26. Qg6 {[%clk 0:01:07.5]}
26... Nf8 {[%clk 0:00:55]} 27. Qxh5 {[%clk 0:01:05.5]} 27... Rxd2 {[%clk
0:00:49.9]} 28. Rf1 {[%clk 0:00:40.4]} 28... Rxd4 {[%clk 0:00:28.9]} 29. Nxd4
{[%clk 0:00:36.3]} 29... Qxd4+ {[%clk 0:00:29.1]} 30. Kg2 {[%clk 0:00:37.2]}
30... Bf6 {[%clk 0:00:28.9]} 31. g4 {[%clk 0:00:28]} 31... Qd2+ {[%clk
0:00:20.1]} 32. Rf2 {[%clk 0:00:27.5]} 32... Qe3 {[%clk 0:00:17.1]} 33. g5
{[%clk 0:00:24.7]} 33... Qe4+ {[%clk 0:00:18.5]} 34. Kf1 {[%clk 0:00:20.8]}
34... g6 {[%clk 0:00:17.2]} 35. Qd1 {[%clk 0:00:07.9]} 35... Qh1+ {[%clk
0:00:18]} 36. Ke2 {[%clk 0:00:09.1]} 36... Qxd1+ {[%clk 0:00:19]} 37. Kxd1
{[%clk 0:00:11]} 37... Bd4 {[%clk 0:00:20.3]} 38. Rc2 {[%clk 0:00:11.6]} 38...
Nd7 {[%clk 0:00:21]} 39. Re2 {[%clk 0:00:10.8]} 39... e5 {[%clk 0:00:21.8]} 40.
Rg2 {[%clk 0:00:09.8]} 40... Bxc5 {[%clk 0:00:22.4]} 41. Rg3 {[%clk 0:00:11.1]}
41... e4 {[%clk 0:00:23.3]} 42. Kc2 {[%clk 0:00:12.3]} 42... d4 {[%clk
0:00:23.2]} 43. Rg4 {[%clk 0:00:13.4]} 43... e3 {[%clk 0:00:22.7]} 44. Re4
{[%clk 0:00:14.6]} 44... Kf7 {[%clk 0:00:23.8]} 45. Rf4+ {[%clk 0:00:13.7]}
45... Ke6 {[%clk 0:00:24.6]} 46. Kd3 {[%clk 0:00:15.2]} 46... Ne5+ {[%clk
0:00:25.1]} 47. Ke4 {[%clk 0:00:16.2]} 47... e2 {[%clk 0:00:26]} 48. Rf6+ {[%clk
0:00:17.3]} 48... Kd7 {[%clk 0:00:27.3]} 0-1

[Event "*** Titled Tuesday Blitz"]
[Site "Chess.com"]
[Date "2018.10.02"]
[Round "3"]
[White "GCamachoMartinez"]
[Black "albi1999"]
[Result "1/2-1/2"]
[WhiteElo "2280"]
[BlackElo "2396"]
[TimeControl "180+2"]
[EndTime "13:36:22 PDT"]
[Termination "Game drawn by repetition"]

1. d4 {[%clk 0:03:01.4]} 1... d5 {[%clk 0:03:01.1]} 2. c4 {[%clk 0:03:02]} 2...
e6 {[%clk 0:03:02.1]} 3. Nf3 {[%clk 0:03:02.4]} 3... Nf6 {[%clk 0:03:03]} 4. g3
{[%clk 0:03:03.3]} 4... Bb4+ {[%clk 0:03:03.7]} 5. Bd2 {[%clk 0:03:03.7]} 5...
Bd6 {[%clk 0:03:05.2]} 6. Qc2 {[%clk 0:03:04.4]} 6... c6 {[%clk 0:03:06.2]} 7.
Bg2 {[%clk 0:03:05.4]} 7... Nbd7 {[%clk 0:03:07]} 8. O-O {[%clk 0:03:06.3]} 8...
O-O {[%clk 0:03:08.1]} 9. b3 {[%clk 0:03:06.6]} 9... Ne4 {[%clk 0:03:08.9]} 10.
Nc3 {[%clk 0:03:07.3]} 10... f5 {[%clk 0:03:09.8]} 11. Bf4 {[%clk 0:03:04.7]}
11... Bxf4 {[%clk 0:03:08.3]} 12. gxf4 {[%clk 0:03:06.6]} 12... b6 {[%clk
0:03:07.9]} 13. e3 {[%clk 0:03:07.1]} 13... Bb7 {[%clk 0:03:07]} 14. cxd5 {[%clk
0:02:55.2]} 14... cxd5 {[%clk 0:03:03.4]} 15. Rac1 {[%clk 0:02:55.8]} 15... Rc8
{[%clk 0:03:04.1]} 16. Qb2 {[%clk 0:02:56.5]} 16... Qe7 {[%clk 0:03:04.4]} 17.
Rfd1 {[%clk 0:02:43.2]} 17... Ba6 {[%clk 0:02:59.7]} 18. Ne5 {[%clk 0:01:56.6]}
18... Nxe5 {[%clk 0:02:58.9]} 19. dxe5 {[%clk 0:01:57.8]} 19... Nxc3 {[%clk
0:02:54.5]} 20. Rxc3 {[%clk 0:01:58.1]} 20... Rxc3 {[%clk 0:02:56.4]} 21. Qxc3
{[%clk 0:01:57.5]} 21... Rc8 {[%clk 0:02:58.3]} 22. Qd2 {[%clk 0:01:42.6]} 22...
Qc5 {[%clk 0:02:56.8]} 23. Bf1 {[%clk 0:01:14]} 23... Bxf1 {[%clk 0:02:56.1]}
24. Kxf1 {[%clk 0:01:15.5]} 24... Qc2 {[%clk 0:02:53.7]} 25. Qxc2 {[%clk
0:00:42]} 25... Rxc2 {[%clk 0:02:55.6]} 26. a4 {[%clk 0:00:43.2]} 26... Kf7
{[%clk 0:02:48.8]} 27. Rd4 {[%clk 0:00:43]} 27... Ke7 {[%clk 0:02:46.8]} 28. a5
{[%clk 0:00:36.7]} 28... Kd7 {[%clk 0:02:40.5]} 29. axb6 {[%clk 0:00:37.7]}
29... axb6 {[%clk 0:02:42.4]} 30. Ra4 {[%clk 0:00:38.5]} 30... Rc7 {[%clk
0:02:38.9]} 31. Ra6 {[%clk 0:00:39]} 31... Kc6 {[%clk 0:02:39.9]} 32. Ra8 {[%clk
0:00:39]} 32... Re7 {[%clk 0:02:38.4]} 33. Ke2 {[%clk 0:00:37.7]} 33... Kc5
{[%clk 0:02:39.5]} 34. Ra4 {[%clk 0:00:34.6]} 34... b5 {[%clk 0:02:40.3]} 35.
Ra6 {[%clk 0:00:31.3]} 35... Kb4 {[%clk 0:02:40.5]} 36. Rb6 {[%clk 0:00:32.2]}
36... Kc5 {[%clk 0:02:37.5]} 37. Rb8 {[%clk 0:00:32.7]} 37... h6 {[%clk
0:02:34.9]} 38. Kd3 {[%clk 0:00:32.2]} 38... Kb4 {[%clk 0:02:35.9]} 39. h4
{[%clk 0:00:30.5]} 39... Rc7 {[%clk 0:02:35.9]} 40. Rb6 {[%clk 0:00:27]} 40...
Rc3+ {[%clk 0:02:25.6]} 41. Kd4 {[%clk 0:00:28.1]} 41... Rc1 {[%clk 0:02:24.8]}
42. Kd3 {[%clk 0:00:24.9]} 42... Rc3+ {[%clk 0:02:23.2]} 43. Kd2 {[%clk
0:00:26]} 43... Rxb3 {[%clk 0:02:22.4]} 44. Rxe6 {[%clk 0:00:26.6]} 44... d4
{[%clk 0:02:21.7]} 45. exd4 {[%clk 0:00:26.5]} 45... Rf3 {[%clk 0:02:22.5]} 46.
d5 {[%clk 0:00:20.4]} 46... Rxf4 {[%clk 0:02:23.8]} 47. d6 {[%clk 0:00:21.3]}
47... Kc5 {[%clk 0:02:22.1]} 48. Re7 {[%clk 0:00:21.6]} 48... Rxf2+ {[%clk
0:02:22.1]} 49. Ke3 {[%clk 0:00:21.4]} 49... Rf1 {[%clk 0:02:22.7]} 50. Rc7+
{[%clk 0:00:22.2]} 50... Kd5 {[%clk 0:02:23.5]} 51. Rxg7 {[%clk 0:00:23.9]}
51... Kxe5 {[%clk 0:02:23.4]} 52. d7 {[%clk 0:00:24.2]} 52... Rd1 {[%clk
0:02:24.4]} 53. Re7+ {[%clk 0:00:22.2]} 53... Kf6 {[%clk 0:02:24.8]} 54. Rh7
{[%clk 0:00:23.1]} 54... Kg6 {[%clk 0:02:24.3]} 55. Re7 {[%clk 0:00:22.6]} 55...
b4 {[%clk 0:02:24.7]} 56. Ke2 {[%clk 0:00:22.9]} 56... Rd5 {[%clk 0:02:24.5]}
57. Ke3 {[%clk 0:00:15]} 57... b3 {[%clk 0:02:24.8]} 58. Kf4 {[%clk 0:00:14.5]}
58... Rd4+ {[%clk 0:02:24.3]} 59. Ke5 {[%clk 0:00:13.7]} 59... Rd1 {[%clk
0:02:08.6]} 60. Re6+ {[%clk 0:00:14.3]} 60... Kf7 {[%clk 0:02:04.4]} 61. Rd6
{[%clk 0:00:15.2]} 61... Rxd6 {[%clk 0:02:00.7]} 62. Kxd6 {[%clk 0:00:16]} 62...
b2 {[%clk 0:02:02.6]} 63. d8=Q {[%clk 0:00:16.5]} 63... b1=Q {[%clk 0:02:04.5]}
64. Qe7+ {[%clk 0:00:15.1]} 64... Kg6 {[%clk 0:02:05.1]} 65. Qe8+ {[%clk
0:00:15.4]} 65... Kf6 {[%clk 0:02:05]} 66. Qe7+ {[%clk 0:00:15.7]} 66... Kg6
{[%clk 0:02:05.8]} 67. Qe8+ {[%clk 0:00:16.5]} 67... Kg7 {[%clk 0:02:06.7]} 68.
Qe7+ {[%clk 0:00:17]} 68... Kg8 {[%clk 0:02:06.7]} 69. Qe8+ {[%clk 0:00:16.3]}
69... Kg7 {[%clk 0:02:05.4]} 70. Qe7+ {[%clk 0:00:16.9]} 70... Kg6 {[%clk
0:02:05.6]} 71. Qe8+ {[%clk 0:00:17.4]} 1/2-1/2

[Event "*** Titled Tuesday Blitz"]
[Site "Chess.com"]
[Date "2018.10.02"]
[Round "3"]
[White "lavr92"]
[Black "Paparama_1917"]
[Result "1/2-1/2"]
[WhiteElo "2525"]
[BlackElo "2516"]
[TimeControl "180+2"]
[EndTime "13:36:51 PDT"]
[Termination "Game drawn by repetition"]

1. d4 {[%clk 0:02:57.9]} 1... d5 {[%clk 0:02:55.7]} 2. c4 {[%clk 0:02:58.8]}
2... e6 {[%clk 0:02:54]} 3. Nc3 {[%clk 0:02:58.5]} 3... Nf6 {[%clk 0:02:54.8]}
4. cxd5 {[%clk 0:02:58.6]} 4... exd5 {[%clk 0:02:55.3]} 5. Bg5 {[%clk
0:02:59.3]} 5... Be7 {[%clk 0:02:56.3]} 6. e3 {[%clk 0:03:00.2]} 6... Nbd7
{[%clk 0:02:56.9]} 7. Bd3 {[%clk 0:03:00.8]} 7... c6 {[%clk 0:02:58.1]} 8. h3
{[%clk 0:03:01.7]} 8... Ne4 {[%clk 0:02:50.7]} 9. Bxe7 {[%clk 0:03:00]} 9...
Qxe7 {[%clk 0:02:49.9]} 10. Bxe4 {[%clk 0:03:01]} 10... dxe4 {[%clk 0:02:50.7]}
11. Qg4 {[%clk 0:03:02.4]} 11... Nf6 {[%clk 0:02:49.9]} 12. Qxg7 {[%clk
0:03:01.7]} 12... Rg8 {[%clk 0:02:50.9]} 13. Qh6 {[%clk 0:03:00.8]} 13... Rxg2
{[%clk 0:02:50.3]} 14. Nge2 {[%clk 0:03:01.5]} 14... Rg6 {[%clk 0:02:39.2]} 15.
Qh4 {[%clk 0:02:50.7]} 15... Be6 {[%clk 0:02:39.6]} 16. O-O-O {[%clk 0:02:21.9]}
16... O-O-O {[%clk 0:02:26]} 17. Nf4 {[%clk 0:02:05.3]} 17... Rgg8 {[%clk
0:02:25.4]} 18. Nh5 {[%clk 0:02:04.2]} 18... Rg6 {[%clk 0:02:20.8]} 19. Nxf6
{[%clk 0:02:03.2]} 19... Qxf6 {[%clk 0:02:17.7]} 20. Qxf6 {[%clk 0:02:03.6]}
20... Rxf6 {[%clk 0:02:19.6]} 21. Nxe4 {[%clk 0:02:04.8]} 21... Rf3 {[%clk
0:02:20.6]} 22. Rh2 {[%clk 0:01:26.6]} 22... Bxa2 {[%clk 0:02:10.2]} 23. Rg1
{[%clk 0:01:11.8]} 23... Bd5 {[%clk 0:01:26.3]} 24. Ng5 {[%clk 0:01:03.4]} 24...
Rf6 {[%clk 0:01:26.7]} 25. Nxh7 {[%clk 0:01:02]} 25... Rh6 {[%clk 0:01:27]} 26.
Rg7 {[%clk 0:00:45.1]} 26... Rh8 {[%clk 0:01:26.7]} 27. Ng5 {[%clk 0:00:43.9]}
27... Rf6 {[%clk 0:00:53.1]} 28. h4 {[%clk 0:00:37.3]} 28... Kd8 {[%clk
0:00:52.3]} 29. Kd2 {[%clk 0:00:25.9]} 29... Ke8 {[%clk 0:00:53.1]} 30. e4
{[%clk 0:00:27.2]} 30... Kf8 {[%clk 0:00:50.1]} 31. exd5 {[%clk 0:00:23]} 31...
Kxg7 {[%clk 0:00:50.4]} 32. dxc6 {[%clk 0:00:24.1]} 32... bxc6 {[%clk
0:00:49.1]} 33. Ke3 {[%clk 0:00:21]} 33... Re8+ {[%clk 0:00:48.6]} 34. Kd3
{[%clk 0:00:18.5]} 34... Rf4 {[%clk 0:00:48.3]} 35. Rg2 {[%clk 0:00:16.3]} 35...
Kf8 {[%clk 0:00:40.6]} 36. h5 {[%clk 0:00:17.1]} 36... Rh4 {[%clk 0:00:39.9]}
37. Nh7+ {[%clk 0:00:18]} 37... Ke7 {[%clk 0:00:40.8]} 38. Rg5 {[%clk
0:00:17.7]} 38... Rd8 {[%clk 0:00:20]} 39. Re5+ {[%clk 0:00:16]} 39... Kd6
{[%clk 0:00:21.3]} 40. Nf6 {[%clk 0:00:16.9]} 40... Kc7 {[%clk 0:00:22.1]} 41.
Re7+ {[%clk 0:00:16.6]} 41... Kb6 {[%clk 0:00:22.8]} 42. Ne4 {[%clk 0:00:17.7]}
42... c5 {[%clk 0:00:19.7]} 43. f3 {[%clk 0:00:10.7]} 43... f5 {[%clk
0:00:20.5]} 44. Re6+ {[%clk 0:00:08.6]} 44... Kb5 {[%clk 0:00:21.1]} 45. Nc3+
{[%clk 0:00:09.9]} 45... Ka5 {[%clk 0:00:22.4]} 46. d5 {[%clk 0:00:11.5]} 46...
Rxh5 {[%clk 0:00:22.5]} 47. Re7 {[%clk 0:00:12.8]} 47... Kb6 {[%clk 0:00:22.8]}
48. Re6+ {[%clk 0:00:14.1]} 48... Ka5 {[%clk 0:00:24.1]} 49. Re7 {[%clk
0:00:15.3]} 49... Kb6 {[%clk 0:00:25.5]} 50. Re6+ {[%clk 0:00:16.7]} 50... Ka5
{[%clk 0:00:26.9]} 51. Re7 {[%clk 0:00:18.1]} 1/2-1/2

[Event "*** Titled Tuesday Blitz"]
[Site "Chess.com"]
[Date "2018.10.02"]
[Round "3"]
[White "Zq1"]
[Black "pKiLz5Rn9b"]
[Result "1-0"]
[WhiteElo "2593"]
[BlackElo "2789"]
[TimeControl "180+2"]
[EndTime "13:36:56 PDT"]
[Termination "Zq1 won on time"]

1. d4 {[%clk 0:03:01.9]} 1... Nf6 {[%clk 0:03:01]} 2. c4 {[%clk 0:03:02.7]} 2...
e6 {[%clk 0:03:02.5]} 3. Nc3 {[%clk 0:03:01.7]} 3... Bb4 {[%clk 0:03:03.3]} 4.
e3 {[%clk 0:03:01.4]} 4... O-O {[%clk 0:03:00.7]} 5. Bd3 {[%clk 0:03:02]} 5...
d5 {[%clk 0:02:57.3]} 6. Nf3 {[%clk 0:03:02.2]} 6... c5 {[%clk 0:02:47.7]} 7.
O-O {[%clk 0:02:58.2]} 7... cxd4 {[%clk 0:02:49]} 8. exd4 {[%clk 0:02:58.2]}
8... dxc4 {[%clk 0:02:50.6]} 9. Bxc4 {[%clk 0:02:59.1]} 9... Bxc3 {[%clk
0:02:52.2]} 10. bxc3 {[%clk 0:02:59.6]} 10... b6 {[%clk 0:02:53.9]} 11. Bg5
{[%clk 0:02:58.3]} 11... Bb7 {[%clk 0:02:54.4]} 12. Ne5 {[%clk 0:02:56.3]} 12...
Nbd7 {[%clk 0:02:44.2]} 13. Nxd7 {[%clk 0:02:53.5]} 13... Qxd7 {[%clk
0:02:45.1]} 14. Bxf6 {[%clk 0:02:54.1]} 14... gxf6 {[%clk 0:02:47]} 15. Qg4+
{[%clk 0:02:53.8]} 15... Kh8 {[%clk 0:02:45.8]} 16. Qh4 {[%clk 0:02:54.3]} 16...
Rg8 {[%clk 0:02:22.7]} 17. Qxf6+ {[%clk 0:02:52.1]} 17... Rg7 {[%clk 0:02:24.3]}
18. f3 {[%clk 0:02:43.8]} 18... Rg8 {[%clk 0:02:20.4]} 19. Rf2 {[%clk
0:02:35.8]} 19... Qc7 {[%clk 0:02:13.1]} 20. Bf1 {[%clk 0:02:34.5]} 20... Qxc3
{[%clk 0:02:12.2]} 21. Re1 {[%clk 0:02:31.7]} 21... Bd5 {[%clk 0:01:55.6]} 22.
Rd1 {[%clk 0:02:14.6]} 22... Qc7 {[%clk 0:01:24]} 23. h4 {[%clk 0:01:58.2]}
23... Qd8 {[%clk 0:01:22.3]} 24. Qf4 {[%clk 0:01:44.3]} 24... Qb8 {[%clk
0:01:15]} 25. Qf6 {[%clk 0:01:41.4]} 25... Qd8 {[%clk 0:00:55.6]} 26. Qf4 {[%clk
0:01:41.6]} 26... f5 {[%clk 0:00:56]} 27. Rc1 {[%clk 0:01:38.5]} 27... Qf6
{[%clk 0:00:51.8]} 28. Rfc2 {[%clk 0:01:32.4]} 28... a5 {[%clk 0:00:38.5]} 29.
Rc8 {[%clk 0:01:25.3]} 29... Bxa2 {[%clk 0:00:30.6]} 30. h5 {[%clk 0:01:10.2]}
30... Bd5 {[%clk 0:00:19.4]} 31. h6 {[%clk 0:01:08.9]} 31... Rg6 {[%clk
0:00:19.1]} 32. Rxg8+ {[%clk 0:01:03.8]} 32... Rxg8 {[%clk 0:00:20.1]} 33. Rc7
{[%clk 0:00:59.8]} 33... a4 {[%clk 0:00:18.1]} 34. Ra7 {[%clk 0:00:59.6]} 34...
a3 {[%clk 0:00:06.5]} 35. Rxa3 {[%clk 0:00:58.9]} 35... Rd8 {[%clk 0:00:06.6]}
36. Ra7 {[%clk 0:00:57.6]} 36... Bc6 {[%clk 0:00:06]} 37. Rc7 {[%clk 0:00:39.4]}
37... Ba8 {[%clk 0:00:04.1]} 38. Ra7 {[%clk 0:00:35.7]} 38... Bc6 {[%clk
0:00:05.1]} 39. Bc4 {[%clk 0:00:30.1]} 39... b5 {[%clk 0:00:03.6]} 40. Bb3
{[%clk 0:00:28.5]} 40... b4 {[%clk 0:00:03.6]} 41. Kh2 {[%clk 0:00:25.5]} 41...
Rg8 {[%clk 0:00:02.2]} 42. Kg1 {[%clk 0:00:24]} 42... Bd5 {[%clk 0:00:03.2]} 43.
Bxd5 {[%clk 0:00:22.7]} 43... exd5 {[%clk 0:00:05.1]} 44. Rb7 {[%clk 0:00:23.9]}
44... b3 {[%clk 0:00:03.9]} 45. Rxb3 {[%clk 0:00:24]} 45... Re8 {[%clk
0:00:05.4]} 46. Rb8 {[%clk 0:00:23.1]} 46... Qe6 {[%clk 0:00:07]} 47. Rxe8+
{[%clk 0:00:22.4]} 47... Qxe8 {[%clk 0:00:08.9]} 48. Qe5+ {[%clk 0:00:23.5]}
48... Qxe5 {[%clk 0:00:09.9]} 49. dxe5 {[%clk 0:00:25.1]} 49... f4 {[%clk
0:00:09.6]} 50. g3 {[%clk 0:00:24.6]} 50... fxg3 {[%clk 0:00:05.5]} 51. Kg2
{[%clk 0:00:25.7]} 51... d4 {[%clk 0:00:03.3]} 52. Kxg3 {[%clk 0:00:26.6]} 52...
d3 {[%clk 0:00:05.2]} 53. Kf2 {[%clk 0:00:27.9]} 53... d2 {[%clk 0:00:07.1]} 54.
Ke2 {[%clk 0:00:29.1]} 54... Kg8 {[%clk 0:00:09]} 55. Kxd2 {[%clk 0:00:30.4]}
55... Kf7 {[%clk 0:00:10.9]} 56. f4 {[%clk 0:00:31.2]} 56... Ke6 {[%clk
0:00:12.8]} 57. Ke3 {[%clk 0:00:32]} 1-0

[Event "*** Titled Tuesday Blitz"]
[Site "Chess.com"]
[Date "2018.10.02"]
[Round "3"]
[White "dmosesov"]
[Black "Bauxi435"]
[Result "0-1"]
[WhiteElo "2313"]
[BlackElo "2430"]
[TimeControl "180+2"]
[EndTime "13:37:04 PDT"]
[Termination "Bauxi435 won by resignation"]

1. e4 {[%clk 0:03:01.9]} 1... c5 {[%clk 0:03:00.4]} 2. Nf3 {[%clk 0:03:02]} 2...
e6 {[%clk 0:03:01.6]} 3. d4 {[%clk 0:03:01.7]} 3... cxd4 {[%clk 0:03:03.5]} 4.
Nxd4 {[%clk 0:03:03.6]} 4... Nf6 {[%clk 0:03:05.1]} 5. Nc3 {[%clk 0:03:03.8]}
5... Nc6 {[%clk 0:03:06.3]} 6. Ndb5 {[%clk 0:02:49.3]} 6... Bc5 {[%clk
0:03:06.6]} 7. Bf4 {[%clk 0:02:38.4]} 7... O-O {[%clk 0:03:04.6]} 8. Bd6 {[%clk
0:02:29.9]} 8... Qb6 {[%clk 0:03:04.1]} 9. Bxc5 {[%clk 0:02:21.4]} 9... Qxc5
{[%clk 0:03:06]} 10. Qd6 {[%clk 0:02:21.4]} 10... Qb6 {[%clk 0:03:07.1]} 11. Bd3
{[%clk 0:01:17]} 11... a6 {[%clk 0:03:06.4]} 12. Qc7 {[%clk 0:01:15.5]} 12...
Qc5 {[%clk 0:02:54.2]} 13. Nd6 {[%clk 0:01:08.1]} 13... b5 {[%clk 0:02:30.5]}
14. O-O {[%clk 0:01:07.7]} 14... Ra7 {[%clk 0:02:28]} 15. b4 {[%clk 0:00:13.5]}
15... Qxc3 {[%clk 0:02:05.2]} 16. Qb6 {[%clk 0:00:14.1]} 16... Qd4 {[%clk
0:01:53.9]} 17. Qxd4 {[%clk 0:00:11.1]} 17... Nxd4 {[%clk 0:01:55.8]} 18. c3
{[%clk 0:00:11.4]} 18... Nc6 {[%clk 0:01:54.7]} 19. f4 {[%clk 0:00:12.6]} 19...
Rc7 {[%clk 0:01:54.7]} 20. Rac1 {[%clk 0:00:12.1]} 20... Ne8 {[%clk 0:01:55]}
21. e5 {[%clk 0:00:08.9]} 21... Bb7 {[%clk 0:01:48.8]} 22. Be4 {[%clk
0:00:08.3]} 22... Nd8 {[%clk 0:01:44]} 23. Bxb7 {[%clk 0:00:05.9]} 23... Nxb7
{[%clk 0:01:44.5]} 24. Ne4 {[%clk 0:00:07.6]} 24... f5 {[%clk 0:01:37.4]} 25.
Ng5 {[%clk 0:00:06.5]} 25... h6 {[%clk 0:01:37.8]} 26. Nf3 {[%clk 0:00:07.6]}
26... g6 {[%clk 0:01:33.2]} 27. Rfd1 {[%clk 0:00:08]} 27... Ng7 {[%clk 0:01:33]}
28. Nd4 {[%clk 0:00:08.7]} 28... Rfc8 {[%clk 0:01:32.5]} 29. Rd3 {[%clk
0:00:07.1]} 29... Kf7 {[%clk 0:01:29.4]} 30. Kf2 {[%clk 0:00:07.8]} 30... Ke7
{[%clk 0:01:29.4]} 31. Ke2 {[%clk 0:00:08.5]} 31... d6 {[%clk 0:01:29.1]} 32.
Nf3 {[%clk 0:00:09.5]} 32... d5 {[%clk 0:01:28.7]} 33. Nd4 {[%clk 0:00:10.3]}
33... Nd8 {[%clk 0:01:27.4]} 34. Kd2 {[%clk 0:00:11.3]} 34... Nc6 {[%clk
0:01:28.4]} 35. Nb3 {[%clk 0:00:11.1]} 35... Nd8 {[%clk 0:01:22.5]} 36. a3
{[%clk 0:00:12]} 36... Nb7 {[%clk 0:01:22.8]} 37. Nd4 {[%clk 0:00:12.8]} 37...
g5 {[%clk 0:01:20.6]} 38. fxg5 {[%clk 0:00:13.4]} 38... hxg5 {[%clk 0:01:21.4]}
39. Rh3 {[%clk 0:00:15.1]} 39... Kf7 {[%clk 0:01:20.6]} 40. Rh6 {[%clk
0:00:16.2]} 40... Nd8 {[%clk 0:01:19]} 41. Rf6+ {[%clk 0:00:17.1]} 41... Kg8
{[%clk 0:01:20.3]} 42. Rg6 {[%clk 0:00:17.7]} 42... g4 {[%clk 0:01:20.7]} 43. h3
{[%clk 0:00:18.3]} 43... Kh7 {[%clk 0:01:20.8]} 44. Rf6 {[%clk 0:00:17.1]} 44...
g3 {[%clk 0:01:20.1]} 45. Ne2 {[%clk 0:00:15.8]} 45... Nh5 {[%clk 0:01:20.2]}
46. Rf8 {[%clk 0:00:15.3]} 46... Nf7 {[%clk 0:01:17.2]} 47. Rxc8 {[%clk
0:00:15.9]} 47... Rxc8 {[%clk 0:01:19.1]} 48. Nd4 {[%clk 0:00:16.5]} 48... Nxe5
{[%clk 0:01:12.8]} 49. Nxe6 {[%clk 0:00:17.3]} 49... Nc4+ {[%clk 0:01:13.4]} 50.
Kd3 {[%clk 0:00:18.2]} 50... Re8 {[%clk 0:01:12.6]} 51. Nc7 {[%clk 0:00:12.7]}
51... Nf4+ {[%clk 0:01:11.3]} 52. Kd4 {[%clk 0:00:13.4]} 52... Ne2+ {[%clk
0:01:08.7]} 53. Kc5 {[%clk 0:00:14.8]} 53... Rc8 {[%clk 0:01:09.3]} 54. Re1
{[%clk 0:00:14.7]} 54... Rxc7+ {[%clk 0:01:09.7]} 55. Kxd5 {[%clk 0:00:15.8]}
55... Nxc3+ {[%clk 0:01:10.1]} 56. Ke6 {[%clk 0:00:17.4]} 56... Kg6 {[%clk
0:01:10.5]} 57. Re3 {[%clk 0:00:18.2]} 57... Ne4 {[%clk 0:01:11.3]} 58. Rf3
{[%clk 0:00:19.2]} 58... Rc6+ {[%clk 0:01:10.6]} 59. Kd7 {[%clk 0:00:20.3]}
59... Rd6+ {[%clk 0:01:11.8]} 60. Kc7 {[%clk 0:00:21.6]} 60... Ne5 {[%clk
0:01:11.3]} 61. Re3 {[%clk 0:00:21.5]} 61... Rd3 {[%clk 0:01:10.8]} 62. Re2
{[%clk 0:00:21.7]} 62... Rd2 {[%clk 0:01:09.8]} 63. Re3 {[%clk 0:00:21.7]} 63...
Rxg2 {[%clk 0:01:10.2]} 64. Kb6 {[%clk 0:00:23.3]} 64... Nc4+ {[%clk 0:01:08.3]}
0-1